[Event "*** Titled Tuesday 3|2 Blitz"]
[Site "Chess.com"]
[Date "2016.03.01"]
[Round "7"]
[White "ChessTrener"]
[Black "FairChess_on_YouTube"]
[Result "1-0"]
[WhiteElo "2606"]
[BlackElo "2734"]
[TimeControl "180+2"]
[EndTime "13:04:50 PST"]
[Termination "ChessTrener won by resignation"]

1. d4 {[%clk 0:03:01.7]} 1... d5 {[%clk 0:03:00.6]} 2. Bf4 {[%clk 0:03:01.8]}
2... Nf6 {[%clk 0:03:00.8]} 3. c3 {[%clk 0:03:02.1]} 3... c5 {[%clk 0:03:00]} 4.
e3 {[%clk 0:03:03]} 4... Nc6 {[%clk 0:03:00.8]} 5. Bd3 {[%clk 0:03:02.2]} 5...
Qb6 {[%clk 0:03:00.2]} 6. b3 {[%clk 0:02:49.7]} 6... Bg4 {[%clk 0:02:55.8]} 7.
Nf3 {[%clk 0:02:47.2]} 7... e6 {[%clk 0:02:49.3]} 8. h3 {[%clk 0:02:44.2]} 8...
Bh5 {[%clk 0:02:38.7]} 9. O-O {[%clk 0:02:44.8]} 9... Be7 {[%clk 0:02:38.8]} 10.
Nbd2 {[%clk 0:02:45]} 10... Rc8 {[%clk 0:02:38.4]} 11. a3 {[%clk 0:02:41.2]}
11... a5 {[%clk 0:02:35.2]} 12. Qe2 {[%clk 0:02:38.1]} 12... O-O {[%clk
0:02:34.5]} 13. a4 {[%clk 0:02:39.1]} 13... Qd8 {[%clk 0:02:26]} 14. Rac1 {[%clk
0:02:33.3]} 14... Bd6 {[%clk 0:02:26.9]} 15. Bxd6 {[%clk 0:02:28.5]} 15... Qxd6
{[%clk 0:02:28.8]} 16. g4 {[%clk 0:02:21.2]} 16... Bg6 {[%clk 0:02:29.2]} 17.
Bxg6 {[%clk 0:02:20.8]} 17... hxg6 {[%clk 0:02:29.4]} 18. Qb5 {[%clk 0:02:19.7]}
18... cxd4 {[%clk 0:02:24.8]} 19. cxd4 {[%clk 0:02:18.8]} 19... Rc7 {[%clk
0:02:17.4]} 20. Ne5 {[%clk 0:02:18.3]} 20... Nxe5 {[%clk 0:02:10.5]} 21. dxe5
{[%clk 0:02:15.6]} 21... Qxe5 {[%clk 0:02:12.4]} 22. Nc4 {[%clk 0:02:15.6]}
22... Qg5 {[%clk 0:01:58.5]} 23. Nd2 {[%clk 0:02:14.7]} 23... Rfc8 {[%clk
0:01:28.1]} 24. Rxc7 {[%clk 0:02:07]} 24... Rxc7 {[%clk 0:01:30]} 25. Nf3 {[%clk
0:02:04.8]} 25... Qh6 {[%clk 0:01:31]} 26. Qxa5 {[%clk 0:01:59.8]} 26... Rc2
{[%clk 0:01:22.6]} 27. Qa8+ {[%clk 0:01:56.1]} 27... Kh7 {[%clk 0:01:22.8]} 28.
Qxb7 {[%clk 0:01:56.9]} 28... Ne4 {[%clk 0:01:17.7]} 29. Qxf7 {[%clk 0:01:53.1]}
29... Qxh3 {[%clk 0:01:11.8]} 30. Qf4 {[%clk 0:01:53.3]} 30... Kg8 {[%clk
0:00:59.1]} 31. Ng5 {[%clk 0:01:50.5]} 31... Nxg5 {[%clk 0:00:34.4]} 32. Qxg5
{[%clk 0:01:51.5]} 32... Rb2 {[%clk 0:00:31.6]} 33. Qxg6 {[%clk 0:01:47.7]}
33... Rxb3 {[%clk 0:00:19]} 34. Rc1 {[%clk 0:01:44.1]} 34... Rb8 {[%clk
0:00:15.8]} 35. Qxe6+ {[%clk 0:01:45.1]} 35... Kh8 {[%clk 0:00:16.7]} 36. Rc8+
{[%clk 0:01:40.8]} 36... Rxc8 {[%clk 0:00:17.2]} 37. Qxc8+ {[%clk 0:01:42.7]}
37... Kh7 {[%clk 0:00:18.8]} 38. Qf5+ {[%clk 0:01:38.4]} 38... Kg8 {[%clk
0:00:20.3]} 39. Qxd5+ {[%clk 0:01:39.2]} 39... Kf8 {[%clk 0:00:21.4]} 40. Qd8+
{[%clk 0:01:32.5]} 40... Kf7 {[%clk 0:00:22.5]} 41. Qd7+ {[%clk 0:01:34.4]}
41... Kf8 {[%clk 0:00:23.3]} 42. Qf5+ {[%clk 0:01:35.5]} 42... Kg8 {[%clk
0:00:21.4]} 43. a5 {[%clk 0:01:36.7]} 43... Qh6 {[%clk 0:00:21.6]} 44. Qc8+
{[%clk 0:01:34.2]} 44... Kh7 {[%clk 0:00:22.1]} 45. Qf5+ {[%clk 0:01:34.4]}
45... Kg8 {[%clk 0:00:22.2]} 46. Kg2 {[%clk 0:01:35.5]} 46... Qc6+ {[%clk
0:00:22.5]} 47. e4 {[%clk 0:01:34.5]} 47... g6 {[%clk 0:00:23.5]} 48. Qd5+
{[%clk 0:01:35.5]} 1-0

[Event "*** Titled Tuesday 3|2 Blitz"]
[Site "Chess.com"]
[Date "2016.03.01"]
[Round "7"]
[White "viditchess"]
[Black "MinhGTrAn"]
[Result "0-1"]
[WhiteElo "2473"]
[BlackElo "2660"]
[TimeControl "180+2"]
[EndTime "13:05:30 PST"]
[Termination "MinhGTrAn won by resignation"]

1. d4 {[%clk 0:03:01.9]} 1... Nf6 {[%clk 0:03:00.8]} 2. c4 {[%clk 0:03:02.5]}
2... e6 {[%clk 0:03:02.7]} 3. Nf3 {[%clk 0:03:03.4]} 3... b6 {[%clk 0:03:04]} 4.
g3 {[%clk 0:03:03.7]} 4... Bb7 {[%clk 0:03:04]} 5. Bg2 {[%clk 0:03:04.9]} 5...
Be7 {[%clk 0:03:04.9]} 6. O-O {[%clk 0:03:05.7]} 6... O-O {[%clk 0:03:06.5]} 7.
Nc3 {[%clk 0:03:03]} 7... Ne4 {[%clk 0:03:07.1]} 8. Bd2 {[%clk 0:03:04.8]} 8...
Nxc3 {[%clk 0:03:04.5]} 9. Bxc3 {[%clk 0:03:05.6]} 9... Be4 {[%clk 0:03:06]} 10.
d5 {[%clk 0:02:59.3]} 10... Bf6 {[%clk 0:03:06.3]} 11. Rc1 {[%clk 0:02:57.5]}
11... a5 {[%clk 0:03:01.3]} 12. Re1 {[%clk 0:02:51.1]} 12... Na6 {[%clk
0:03:01.8]} 13. Bh3 {[%clk 0:02:44.6]} 13... Nc5 {[%clk 0:02:53.5]} 14. Nd4
{[%clk 0:02:30.5]} 14... Bg5 {[%clk 0:02:13.6]} 15. Bd2 {[%clk 0:02:27.5]} 15...
Bf6 {[%clk 0:02:14]} 16. Bc3 {[%clk 0:02:24.8]} 16... Bg5 {[%clk 0:02:14.9]} 17.
Bd2 {[%clk 0:02:04.8]} 17... Bxd2 {[%clk 0:01:58.4]} 18. Qxd2 {[%clk 0:02:05.6]}
18... e5 {[%clk 0:02:00.3]} 19. Nb5 {[%clk 0:02:04.8]} 19... d6 {[%clk
0:02:01.8]} 20. b3 {[%clk 0:01:56.5]} 20... Bg6 {[%clk 0:02:00.9]} 21. Qb2
{[%clk 0:01:42.8]} 21... f5 {[%clk 0:01:58.5]} 22. a3 {[%clk 0:01:44.1]} 22...
f4 {[%clk 0:01:57.2]} 23. Nc3 {[%clk 0:01:26.3]} 23... Qf6 {[%clk 0:01:51.9]}
24. Rf1 {[%clk 0:01:25.7]} 24... f3 {[%clk 0:01:38.3]} 25. b4 {[%clk 0:01:20]}
25... fxe2 {[%clk 0:01:38.5]} 26. Qxe2 {[%clk 0:01:21.1]} 26... axb4 {[%clk
0:01:31.5]} 27. axb4 {[%clk 0:01:21.5]} 27... Bd3 {[%clk 0:01:27]} 28. Qe3
{[%clk 0:01:22.5]} 28... Bxf1 {[%clk 0:01:27.2]} 29. Rxf1 {[%clk 0:01:24.4]}
29... Nb3 {[%clk 0:01:20.4]} 30. Ne4 {[%clk 0:01:23.7]} 30... Qf3 {[%clk
0:01:20.8]} 31. Be6+ {[%clk 0:01:23.6]} 31... Kh8 {[%clk 0:01:21.4]} 32. Qxf3
{[%clk 0:01:21.1]} 32... Rxf3 {[%clk 0:01:23.3]} 33. Ng5 {[%clk 0:01:22.8]}
33... Rf6 {[%clk 0:01:20.8]} 34. Nf7+ {[%clk 0:01:24.3]} 34... Kg8 {[%clk
0:01:06.3]} 35. Ng5+ {[%clk 0:01:20.5]} 35... Kh8 {[%clk 0:01:07.8]} 36. Nf7+
{[%clk 0:01:21.6]} 36... Rxf7 {[%clk 0:01:09.4]} 37. Bxf7 {[%clk 0:01:23.5]}
37... g6 {[%clk 0:01:09]} 38. Rb1 {[%clk 0:01:22.7]} 38... Nd2 {[%clk
0:01:07.5]} 39. Rc1 {[%clk 0:01:23.7]} 39... Ra4 {[%clk 0:01:09]} 40. c5 {[%clk
0:01:24.7]} 40... Rxb4 {[%clk 0:00:56.9]} 41. cxd6 {[%clk 0:01:25.8]} 41... cxd6
{[%clk 0:00:58.8]} 42. Rc8+ {[%clk 0:01:15.2]} 42... Kg7 {[%clk 0:00:59.6]} 43.
Be6 {[%clk 0:01:17]} 43... e4 {[%clk 0:00:55.7]} 44. Rc7+ {[%clk 0:01:06.2]}
44... Kf6 {[%clk 0:00:56.7]} 45. Rxh7 {[%clk 0:01:06.7]} 45... Nf3+ {[%clk
0:00:55.8]} 46. Kg2 {[%clk 0:01:07.9]} 46... Rb1 {[%clk 0:00:55.3]} 47. h4
{[%clk 0:01:04.4]} 47... b5 {[%clk 0:00:56.1]} 48. Rf7+ {[%clk 0:01:03.3]} 48...
Ke5 {[%clk 0:00:56.5]} 49. Rg7 {[%clk 0:01:04.7]} 49... b4 {[%clk 0:00:50.3]}
50. Rxg6 {[%clk 0:01:05.2]} 50... b3 {[%clk 0:00:49.8]} 51. Bg4 {[%clk
0:01:01.7]} 51... Rg1+ {[%clk 0:00:47.8]} 52. Kh3 {[%clk 0:01:02.2]} 52... Rh1+
{[%clk 0:00:44.8]} 53. Kg2 {[%clk 0:01:03.1]} 53... Rh2+ {[%clk 0:00:46.6]} 54.
Kf1 {[%clk 0:01:04.2]} 54... b2 {[%clk 0:00:48.5]} 55. Re6+ {[%clk 0:01:02.2]}
55... Kxd5 {[%clk 0:00:48.5]} 0-1

[Event "*** Titled Tuesday 3|2 Blitz"]
[Site "Chess.com"]
[Date "2016.03.01"]
[Round "7"]
[White "D-Prawira"]
[Black "chessbia"]
[Result "0-1"]
[WhiteElo "2198"]
[BlackElo "2028"]
[TimeControl "180+2"]
[EndTime "13:05:43 PST"]
[Termination "chessbia won by resignation"]

1. Nf3 {[%clk 0:03:01.9]} 1... d5 {[%clk 0:02:57.9]} 2. g3 {[%clk 0:03:02.6]}
2... Nf6 {[%clk 0:02:58.2]} 3. Bg2 {[%clk 0:03:03.3]} 3... c5 {[%clk 0:02:58.7]}
4. d3 {[%clk 0:03:04.2]} 4... Nc6 {[%clk 0:02:59.7]} 5. O-O {[%clk 0:03:04.9]}
5... g6 {[%clk 0:03:00.7]} 6. Nbd2 {[%clk 0:03:03.2]} 6... Bg7 {[%clk
0:02:56.7]} 7. e4 {[%clk 0:03:03.5]} 7... dxe4 {[%clk 0:02:57.6]} 8. dxe4 {[%clk
0:03:02.5]} 8... O-O {[%clk 0:02:53.2]} 9. c3 {[%clk 0:02:58.5]} 9... b5 {[%clk
0:02:45.8]} 10. a4 {[%clk 0:02:32.9]} 10... b4 {[%clk 0:02:44.3]} 11. Qe2 {[%clk
0:02:20]} 11... a5 {[%clk 0:02:29.7]} 12. Rd1 {[%clk 0:02:12.8]} 12... Qc7
{[%clk 0:02:25.9]} 13. Nc4 {[%clk 0:02:07.7]} 13... Ba6 {[%clk 0:02:21.4]} 14.
Bf1 {[%clk 0:02:04.1]} 14... Rfd8 {[%clk 0:02:11.8]} 15. Bf4 {[%clk 0:02:01.3]}
15... Qb7 {[%clk 0:02:04.4]} 16. Qe3 {[%clk 0:01:49.3]} 16... Bxc4 {[%clk
0:01:51.2]} 17. Bxc4 {[%clk 0:01:47.4]} 17... Qb6 {[%clk 0:01:50.7]} 18. Ng5
{[%clk 0:01:35.7]} 18... e6 {[%clk 0:01:51.3]} 19. Bxe6 {[%clk 0:01:26]} 19...
fxe6 {[%clk 0:01:49.7]} 20. Nxe6 {[%clk 0:01:26.4]} 20... Rxd1+ {[%clk
0:01:48.4]} 21. Rxd1 {[%clk 0:01:25.2]} 21... Re8 {[%clk 0:01:21.3]} 22. Nxg7
{[%clk 0:01:00.5]} 22... Kxg7 {[%clk 0:01:21.4]} 23. Bh6+ {[%clk 0:01:01.3]}
23... Kg8 {[%clk 0:01:17.8]} 24. Qf4 {[%clk 0:01:00.6]} 24... Ne5 {[%clk
0:01:12.5]} 25. Rd5 {[%clk 0:00:49]} 25... Nxd5 {[%clk 0:01:10.2]} 26. exd5
{[%clk 0:00:48.4]} 26... Qd6 {[%clk 0:01:02.6]} 27. c4 {[%clk 0:00:47.8]} 27...
Qe7 {[%clk 0:00:57.6]} 28. b3 {[%clk 0:00:44.5]} 28... Qf7 {[%clk 0:00:56.8]}
29. Qc1 {[%clk 0:00:23.5]} 29... Nf3+ {[%clk 0:00:45.6]} 30. Kg2 {[%clk
0:00:22.2]} 30... Ne1+ {[%clk 0:00:30.2]} 31. Kf1 {[%clk 0:00:12.7]} 31... Nd3
{[%clk 0:00:28.9]} 32. Qd2 {[%clk 0:00:11.7]} 32... Qf3 {[%clk 0:00:21.4]} 33.
Be3 {[%clk 0:00:11.9]} 33... Qh1+ {[%clk 0:00:21.9]} 34. Ke2 {[%clk 0:00:12.9]}
34... Nc1+ {[%clk 0:00:13.9]} 35. Qxc1 {[%clk 0:00:07.2]} 35... Qxc1 {[%clk
0:00:14.7]} 36. Kf3 {[%clk 0:00:07.9]} 36... Qd1+ {[%clk 0:00:13.8]} 37. Kg2
{[%clk 0:00:06.5]} 37... Qxb3 {[%clk 0:00:14.8]} 38. d6 {[%clk 0:00:06.9]} 38...
Qxc4 {[%clk 0:00:15]} 39. d7 {[%clk 0:00:07.9]} 39... Qd5+ {[%clk 0:00:16.3]}
40. Kg1 {[%clk 0:00:07.5]} 40... Qxd7 {[%clk 0:00:17.8]} 41. h4 {[%clk
0:00:07.9]} 41... Qd5 {[%clk 0:00:18.5]} 42. h5 {[%clk 0:00:07.8]} 42... Qf3
{[%clk 0:00:19.3]} 43. h6 {[%clk 0:00:08.1]} 43... Rd8 {[%clk 0:00:20.3]} 44.
Kh2 {[%clk 0:00:08.1]} 44... Rd1 {[%clk 0:00:21]} 0-1

[Event "*** Titled Tuesday 3|2 Blitz"]
[Site "Chess.com"]
[Date "2016.03.01"]
[Round "7"]
[White "jcgs1030"]
[Black "AdrianaNikolova"]
[Result "1-0"]
[WhiteElo "2237"]
[BlackElo "2138"]
[TimeControl "180+2"]
[EndTime "13:05:52 PST"]
[Termination "jcgs1030 won by resignation"]

1. e4 {[%clk 0:03:01.9]} 1... c5 {[%clk 0:03:00.6]} 2. Nf3 {[%clk 0:03:02.8]}
2... Nc6 {[%clk 0:03:00.7]} 3. d4 {[%clk 0:03:03.6]} 3... cxd4 {[%clk
0:03:02.6]} 4. Nxd4 {[%clk 0:03:05.1]} 4... Nf6 {[%clk 0:03:02.2]} 5. Nc3 {[%clk
0:03:04.8]} 5... d6 {[%clk 0:03:03.2]} 6. Bg5 {[%clk 0:03:04.4]} 6... e6 {[%clk
0:03:01.5]} 7. Qd2 {[%clk 0:03:04.2]} 7... a6 {[%clk 0:03:01.3]} 8. O-O-O {[%clk
0:03:03.7]} 8... h6 {[%clk 0:03:02.6]} 9. Nxc6 {[%clk 0:03:01.8]} 9... bxc6
{[%clk 0:03:04.5]} 10. Bf4 {[%clk 0:03:03.2]} 10... d5 {[%clk 0:03:03.2]} 11.
Qe3 {[%clk 0:03:04.2]} 11... Bb4 {[%clk 0:02:58.9]} 12. Be2 {[%clk 0:03:02.3]}
12... Qa5 {[%clk 0:02:56.3]} 13. Be5 {[%clk 0:02:58.5]} 13... Be7 {[%clk
0:02:55.9]} 14. Qg3 {[%clk 0:02:57.1]} 14... O-O {[%clk 0:02:52.5]} 15. Kb1
{[%clk 0:02:28.1]} 15... Ra7 {[%clk 0:02:48.3]} 16. Ka1 {[%clk 0:02:04.2]} 16...
Rb7 {[%clk 0:02:46.4]} 17. Bd6 {[%clk 0:02:01.1]} 17... Bxd6 {[%clk 0:02:36.9]}
18. Qxd6 {[%clk 0:02:03]} 18... Qb4 {[%clk 0:02:29.8]} 19. Qxb4 {[%clk 0:02:02]}
19... Rxb4 {[%clk 0:02:31.7]} 20. a3 {[%clk 0:01:59]} 20... Rb8 {[%clk
0:02:28.1]} 21. e5 {[%clk 0:01:59.2]} 21... Nd7 {[%clk 0:02:27.3]} 22. f4 {[%clk
0:02:00.8]} 22... c5 {[%clk 0:02:22.9]} 23. g4 {[%clk 0:01:56.1]} 23... Bb7
{[%clk 0:02:22.1]} 24. Rhe1 {[%clk 0:01:55.3]} 24... Nb6 {[%clk 0:02:15]} 25. f5
{[%clk 0:01:50.2]} 25... d4 {[%clk 0:02:14.2]} 26. Nb1 {[%clk 0:01:44.9]} 26...
exf5 {[%clk 0:01:58]} 27. gxf5 {[%clk 0:01:46.8]} 27... Be4 {[%clk 0:01:57.9]}
28. Bd3 {[%clk 0:01:47.9]} 28... Bxd3 {[%clk 0:01:55.6]} 29. Rxd3 {[%clk
0:01:49.8]} 29... Rfe8 {[%clk 0:01:49]} 30. Nd2 {[%clk 0:01:49.3]} 30... Nd5
{[%clk 0:01:38.2]} 31. Nc4 {[%clk 0:01:46.2]} 31... Re7 {[%clk 0:01:24.6]} 32.
c3 {[%clk 0:01:36.3]} 32... Nf4 {[%clk 0:01:16.2]} 33. Rf3 {[%clk 0:01:35.5]}
33... g5 {[%clk 0:01:17.8]} 34. cxd4 {[%clk 0:01:25.8]} 34... cxd4 {[%clk
0:01:19.7]} 35. Rd1 {[%clk 0:01:26.7]} 35... d3 {[%clk 0:01:13.9]} 36. h4 {[%clk
0:01:27.2]} 36... Rc8 {[%clk 0:01:07.2]} 37. b3 {[%clk 0:01:24]} 37... f6 {[%clk
0:00:49.9]} 38. exf6 {[%clk 0:01:17.7]} 38... Rd7 {[%clk 0:00:35.8]} 39. hxg5
{[%clk 0:01:16.7]} 39... hxg5 {[%clk 0:00:37.7]} 40. Rg1 {[%clk 0:01:17]} 40...
Kf8 {[%clk 0:00:32.8]} 41. Nb6 {[%clk 0:01:14.9]} 41... Rdc7 {[%clk 0:00:07.5]}
42. Nxc8 {[%clk 0:01:13.8]} 42... Rxc8 {[%clk 0:00:09.4]} 43. Rd1 {[%clk
0:01:12.6]} 43... Rc3 {[%clk 0:00:10.2]} 44. Kb2 {[%clk 0:01:13.6]} 44... Rc2+
{[%clk 0:00:11.5]} 45. Kb1 {[%clk 0:01:15.1]} 45... Rc3 {[%clk 0:00:12.8]} 46.
Rg3 {[%clk 0:01:07.1]} 46... Rxb3+ {[%clk 0:00:12.4]} 47. Ka2 {[%clk 0:01:08.7]}
47... Rc3 {[%clk 0:00:13.9]} 48. Rxg5 {[%clk 0:01:09.7]} 48... Kf7 {[%clk
0:00:13.9]} 49. Rg4 {[%clk 0:01:05.1]} 49... Ne2 {[%clk 0:00:10.6]} 50. Ra4
{[%clk 0:00:56.7]} 50... Rc2+ {[%clk 0:00:11.6]} 51. Kb3 {[%clk 0:00:56.5]}
51... Nc3 {[%clk 0:00:13.4]} 52. Rxd3 {[%clk 0:00:57.2]} 52... Ne4 {[%clk
0:00:10.1]} 53. Kxc2 {[%clk 0:00:56.7]} 1-0

[Event "*** Titled Tuesday 3|2 Blitz"]
[Site "Chess.com"]
[Date "2016.03.01"]
[Round "7"]
[White "Yaacovn"]
[Black "Izoria123"]
[Result "1/2-1/2"]
[WhiteElo "2631"]
[BlackElo "2563"]
[TimeControl "180+2"]
[EndTime "13:06:10 PST"]
[Termination "Game drawn by agreement"]

1. d4 {[%clk 0:03:01.9]} 1... Nf6 {[%clk 0:02:57.2]} 2. Nf3 {[%clk 0:03:03.1]}
2... g6 {[%clk 0:02:58.8]} 3. c4 {[%clk 0:03:04.2]} 3... Bg7 {[%clk 0:03:00.4]}
4. Nc3 {[%clk 0:03:05.3]} 4... d5 {[%clk 0:03:01.7]} 5. cxd5 {[%clk 0:03:06.7]}
5... Nxd5 {[%clk 0:03:03.3]} 6. g3 {[%clk 0:03:08.6]} 6... Nb6 {[%clk
0:03:03.5]} 7. Bg2 {[%clk 0:03:09.9]} 7... Nc6 {[%clk 0:03:05.2]} 8. O-O {[%clk
0:03:10.2]} 8... Nxd4 {[%clk 0:03:04.3]} 9. Nxd4 {[%clk 0:03:11.3]} 9... Qxd4
{[%clk 0:03:06]} 10. Nb5 {[%clk 0:03:07.7]} 10... Qc4 {[%clk 0:03:06.8]} 11. Qb3
{[%clk 0:03:05.1]} 11... O-O {[%clk 0:02:53.2]} 12. Qxc4 {[%clk 0:02:56.9]}
12... Nxc4 {[%clk 0:02:55.1]} 13. Nxc7 {[%clk 0:02:58]} 13... Rb8 {[%clk
0:02:55.5]} 14. Nd5 {[%clk 0:02:52.3]} 14... Bg4 {[%clk 0:02:39.1]} 15. Nxe7+
{[%clk 0:02:37.2]} 15... Kh8 {[%clk 0:02:39.3]} 16. Bd5 {[%clk 0:01:44.6]} 16...
Nxb2 {[%clk 0:01:55.9]} 17. Rb1 {[%clk 0:01:44.2]} 17... Na4 {[%clk 0:01:54.9]}
18. Bf4 {[%clk 0:01:45.2]} 18... Rbd8 {[%clk 0:01:52.1]} 19. Rxb7 {[%clk
0:01:42]} 19... Nc3 {[%clk 0:01:47.7]} 20. Bf3 {[%clk 0:01:29.5]} 20... Nxe2+
{[%clk 0:01:46.8]} 21. Bxe2 {[%clk 0:01:25.9]} 21... Bxe2 {[%clk 0:01:48.7]} 22.
Re1 {[%clk 0:01:26.5]} 22... Bf3 {[%clk 0:01:31]} 23. Rxa7 {[%clk 0:01:27.5]}
23... h6 {[%clk 0:01:23]} 24. Ra3 {[%clk 0:01:20.9]} 24... Ba8 {[%clk
0:01:21.4]} 25. h4 {[%clk 0:01:19.7]} 25... Rd7 {[%clk 0:01:11]} 26. Rae3 {[%clk
0:01:13.7]} 26... Rfd8 {[%clk 0:01:05.4]} 27. a4 {[%clk 0:00:55.5]} 27... Bf6
{[%clk 0:01:05.8]} 28. Be5 {[%clk 0:00:51.9]} 28... Bxe5 {[%clk 0:01:05.1]} 29.
Rxe5 {[%clk 0:00:53.8]} 29... Kg7 {[%clk 0:01:05.3]} 30. h5 {[%clk 0:00:52.3]}
30... Rd1 {[%clk 0:00:42.6]} 31. hxg6 {[%clk 0:00:40.2]} 31... fxg6 {[%clk
0:00:44.5]} 32. f4 {[%clk 0:00:25.4]} 32... Kf7 {[%clk 0:00:27.7]} 33. Rxd1
{[%clk 0:00:23.1]} 33... Rxd1+ {[%clk 0:00:27.7]} 34. Kf2 {[%clk 0:00:24.8]}
34... Rd7 {[%clk 0:00:26.3]} 35. Nc8 {[%clk 0:00:25.4]} 35... Rd2+ {[%clk
0:00:13.8]} 36. Re2 {[%clk 0:00:25.9]} 36... Rd3 {[%clk 0:00:14.8]} 37. Re3
{[%clk 0:00:26.9]} 37... Rd2+ {[%clk 0:00:16.1]} 38. Ke1 {[%clk 0:00:26.2]}
38... Ra2 {[%clk 0:00:16.3]} 39. Nb6 {[%clk 0:00:26.2]} 39... Bc6 {[%clk
0:00:17.4]} 40. Nc4 {[%clk 0:00:20.7]} 40... Bxa4 {[%clk 0:00:15.7]} 41. Nd6+
{[%clk 0:00:22]} 41... Kf6 {[%clk 0:00:16.4]} 42. Re5 {[%clk 0:00:23.3]} 42...
Bc6 {[%clk 0:00:13.3]} 43. Rc5 {[%clk 0:00:23.3]} 43... Ra6 {[%clk 0:00:13.7]}
44. g4 {[%clk 0:00:22.8]} 44... Ke6 {[%clk 0:00:14.2]} 45. Nc4 {[%clk
0:00:22.8]} 45... Bd5 {[%clk 0:00:11]} 46. Ne3 {[%clk 0:00:23.5]} 46... Bb7
{[%clk 0:00:12.2]} 47. Kf2 {[%clk 0:00:23.5]} 47... Ra2+ {[%clk 0:00:12.4]} 48.
Kg3 {[%clk 0:00:23.9]} 48... Ra3 {[%clk 0:00:14.1]} 49. Re5+ {[%clk 0:00:25.2]}
49... Kf6 {[%clk 0:00:15.3]} 50. Kf2 {[%clk 0:00:26.7]} 50... Ra2+ {[%clk
0:00:15.6]} 51. Ke1 {[%clk 0:00:28.2]} 51... Ra4 {[%clk 0:00:16.4]} 52. Rb5
{[%clk 0:00:27.7]} 52... Bf3 {[%clk 0:00:16.1]} 53. Rb6+ {[%clk 0:00:28.9]}
53... Kf7 {[%clk 0:00:16.7]} 54. f5 {[%clk 0:00:30.3]} 54... gxf5 {[%clk
0:00:16.8]} 55. Nxf5 {[%clk 0:00:30.1]} 55... Bxg4 {[%clk 0:00:17.1]} 56. Nxh6+
{[%clk 0:00:31.1]} 56... Kg7 {[%clk 0:00:17.9]} 1/2-1/2

[Event "*** Titled Tuesday 3|2 Blitz"]
[Site "Chess.com"]
[Date "2016.03.01"]
[Round "7"]
[White "Iwannabetheguy"]
[Black "bugsbunny444"]
[Result "1/2-1/2"]
[WhiteElo "2021"]
[BlackElo "2422"]
[TimeControl "180+2"]
[EndTime "13:06:16 PST"]
[Termination "Game drawn by repetition"]

1. e4 {[%clk 0:03:01.9]} 1... e6 {[%clk 0:03:00.7]} 2. d4 {[%clk 0:03:01.7]}
2... d5 {[%clk 0:03:02]} 3. Nc3 {[%clk 0:03:03.1]} 3... Nf6 {[%clk 0:03:02.7]}
4. Bg5 {[%clk 0:03:01.8]} 4... Bb4 {[%clk 0:03:02.9]} 5. e5 {[%clk 0:03:01.1]}
5... h6 {[%clk 0:03:04.3]} 6. Bd2 {[%clk 0:03:02.1]} 6... Bxc3 {[%clk 0:03:05]}
7. bxc3 {[%clk 0:03:03.3]} 7... Ne4 {[%clk 0:03:06]} 8. Bd3 {[%clk 0:03:04.4]}
8... Nxd2 {[%clk 0:03:05.8]} 9. Qxd2 {[%clk 0:02:56.9]} 9... c5 {[%clk
0:03:06.5]} 10. Nf3 {[%clk 0:02:56.5]} 10... Qe7 {[%clk 0:03:05.8]} 11. O-O
{[%clk 0:02:55.8]} 11... c4 {[%clk 0:03:06.9]} 12. Be2 {[%clk 0:02:55.8]} 12...
Qa3 {[%clk 0:03:08.6]} 13. Rfb1 {[%clk 0:02:35.5]} 13... Nd7 {[%clk 0:03:09.1]}
14. Rb4 {[%clk 0:02:27.3]} 14... Nb6 {[%clk 0:03:07.8]} 15. Qe3 {[%clk 0:02:25]}
15... Na4 {[%clk 0:02:58.6]} 16. Nd2 {[%clk 0:02:19.9]} 16... Qxc3 {[%clk
0:02:53.6]} 17. Qxc3 {[%clk 0:02:10.7]} 17... Nxc3 {[%clk 0:02:55.5]} 18. Bf3
{[%clk 0:02:07.4]} 18... b5 {[%clk 0:02:09.9]} 19. a4 {[%clk 0:01:56.5]} 19...
Bd7 {[%clk 0:01:43.1]} 20. axb5 {[%clk 0:01:32.5]} 20... Nxb5 {[%clk 0:01:40.2]}
21. Nxc4 {[%clk 0:01:30.9]} 21... Ke7 {[%clk 0:01:25.1]} 22. Na3 {[%clk
0:01:07.1]} 22... Nc3 {[%clk 0:01:05.5]} 23. Nb1 {[%clk 0:01:00.6]} 23... Rhc8
{[%clk 0:00:29.7]} 24. Nd2 {[%clk 0:00:53.3]} 24... Nb5 {[%clk 0:00:21.6]} 25.
c4 {[%clk 0:00:47.6]} 25... Nxd4 {[%clk 0:00:22.9]} 26. cxd5 {[%clk 0:00:42.9]}
26... Nxf3+ {[%clk 0:00:17]} 27. Nxf3 {[%clk 0:00:41.8]} 27... exd5 {[%clk
0:00:18.6]} 28. Rb7 {[%clk 0:00:35.7]} 28... Rcb8 {[%clk 0:00:15.1]} 29. Rc7
{[%clk 0:00:27.4]} 29... Kd8 {[%clk 0:00:14.3]} 30. Rc5 {[%clk 0:00:26.1]} 30...
Be6 {[%clk 0:00:15.3]} 31. h3 {[%clk 0:00:26.2]} 31... Rb4 {[%clk 0:00:09]} 32.
Rca5 {[%clk 0:00:22.5]} 32... Rb7 {[%clk 0:00:06.5]} 33. Nd4 {[%clk 0:00:23]}
33... Kd7 {[%clk 0:00:07.7]} 34. f4 {[%clk 0:00:21]} 34... g6 {[%clk 0:00:08.3]}
35. g4 {[%clk 0:00:21.3]} 35... Ke8 {[%clk 0:00:05.6]} 36. f5 {[%clk 0:00:22.1]}
36... gxf5 {[%clk 0:00:06.1]} 37. gxf5 {[%clk 0:00:23.7]} 37... Bd7 {[%clk
0:00:02.9]} 38. e6 {[%clk 0:00:23.7]} 38... fxe6 {[%clk 0:00:03.4]} 39. fxe6
{[%clk 0:00:25.3]} 39... Bc8 {[%clk 0:00:02.8]} 40. Rxd5 {[%clk 0:00:25.9]}
40... Rg7+ {[%clk 0:00:03.1]} 41. Kf2 {[%clk 0:00:26.4]} 41... Bb7 {[%clk
0:00:03.8]} 42. Rb5 {[%clk 0:00:24]} 42... a6 {[%clk 0:00:04.6]} 43. Rb6 {[%clk
0:00:23.9]} 43... Rd8 {[%clk 0:00:04]} 44. Nf5 {[%clk 0:00:24.5]} 44... Rc7
{[%clk 0:00:03.7]} 45. Nd6+ {[%clk 0:00:25]} 45... Ke7 {[%clk 0:00:02.7]} 46.
Nxb7 {[%clk 0:00:26.2]} 46... Rd3 {[%clk 0:00:04]} 47. Na5 {[%clk 0:00:25.2]}
47... Rc2+ {[%clk 0:00:04.8]} 48. Ke1 {[%clk 0:00:25.7]} 48... Rdd2 {[%clk
0:00:03]} 49. Nc6+ {[%clk 0:00:26.2]} 49... Kf6 {[%clk 0:00:03.8]} 50. e7 {[%clk
0:00:25.4]} 50... Re2+ {[%clk 0:00:04.3]} 51. Kd1 {[%clk 0:00:25.9]} 51... Red2+
{[%clk 0:00:05.6]} 52. Ke1 {[%clk 0:00:27]} 52... Re2+ {[%clk 0:00:07.1]} 53.
Kf1 {[%clk 0:00:28.4]} 53... Rf2+ {[%clk 0:00:08.6]} 54. Ke1 {[%clk 0:00:29.8]}
54... Rfe2+ {[%clk 0:00:10.1]} 55. Kd1 {[%clk 0:00:31.4]} 55... Red2+ {[%clk
0:00:11.6]} 56. Ke1 {[%clk 0:00:32.9]} 56... Re2+ {[%clk 0:00:13.2]} 1/2-1/2